bitfinex/quotes_ETHUSD_20240915
["timestamp","ask_amount","ask_price","bid_price","bid_amount"]
[1726372239071,6.29692,2426.5,2426.3,0.0394243]
[1726372241988,6.29692,2426.5,2426.4,0.44680621]
[1726372244078,9.59394,2426.5,2426.4,0.44680621]
[1726372247227,6.29692,2426.5,2426.4,0.44680621]
[1726372247833,6.29692,2426.5,2426.4,2.87000621]
[1726372252526,7.59109317,2426.6,2426.4,2.87000621]
[1726372256302,7.59109317,2426.6,2426.4,0.44680621]
[1726372257088,3.29692,2426.5,2426.4,0.44680621]
[1726372257289,6.29692,2426.5,2426.4,0.44680621]
[1726372271277,7.59122317,2426.5,2426.4,0.44680621]
[1726372274508,4.29430317,2426.5,2426.4,0.44680621]
[1726372274789,3.0,2426.5,2426.4,2.80210621]
[1726372275293,4.29430317,2426.7,2426.5,2.3553]
[1726372275512,1.29430317,2426.8,2426.6,0.41441742]
[1726372275725,3.0,2426.7,2426.6,0.44416657]
[1726372287300,6.29665,2426.7,2426.6,0.44416657]
[1726372287507,6.29665,2426.7,2426.3,2.4888243]
[1726372287726,6.29665,2426.7,2426.6,0.44386144]
[1726372287940,6.29665,2426.7,2426.3,2.4888243]
[1726372288428,6.29665,2426.7,2426.4,0.44392342]
[1726372290843,3.0,2426.7,2426.4,0.44392342]
[1726372291226,3.0,2426.7,2426.5,2.4494]
[1726372291543,3.0,2426.7,2426.6,0.44386144]
[1726372291904,4.29430317,2426.9,2426.7,2.4494]
[1726372292108,1.72573756,2427.0,2426.7,2.4494]
[1726372292109,4.29430317,2427.0,2426.7,2.4494]
[1726372292411,4.29430317,2427.0,2426.8,0.44380381]
[1726372292646,4.29430317,2427.0,2426.7,2.4494]
[1726372292866,7.59057317,2427.0,2426.7,2.4494]
[1726372293073,7.59057317,2427.0,2426.8,0.44380381]
[1726372293559,7.59057317,2427.0,2426.7,3.8588306]
[1726372293720,6.29627,2427.0,2426.9,0.44377283]
[1726372293912,6.29627,2427.0,2426.8,0.44380381]
[1726372294116,6.29627,2427.0,2426.9,0.44377283]
[1726372294518,6.29627,2427.0,2426.7,3.8588306]
[1726372294757,6.29627,2427.0,2426.9,0.44377283]
[1726372295259,6.29627,2427.0,2426.7,2.4494]
[1726372295560,6.29627,2427.0,2426.9,0.44377283]
[1726372295755,6.29627,2427.0,2426.8,0.44380381]
[1726372296072,6.29627,2427.0,2426.9,0.44377283]
[1726372296443,6.29627,2427.0,2426.5,2.4494]
[1726372296444,7.59057317,2427.0,2426.5,2.4494]
[1726372296645,3.29638,2426.9,2426.5,2.4494]
[1726372296835,3.0,2426.8,2426.5,2.4494]
[1726372302027,3.0,2426.8,2426.6,0.44386577]
[1726372311138,4.29430317,2427.0,2426.6,0.44386577]
[1726372311359,7.59068317,2427.0,2426.6,0.44386577]
[1726372318153,4.29430317,2426.9,2426.6,0.44386577]
[1726372318955,7.59071317,2426.9,2426.6,0.44386577]
[1726372319278,9.88511317,2426.9,2426.6,0.44386577]
[1726372321285,4.29430317,2426.8,2426.6,0.44386577]
[1726372322886,3.0,2426.8,2426.6,0.44386577]
[1726372323084,4.29430317,2426.8,2426.6,0.44386577]
[1726372323386,3.0,2426.8,2426.6,0.44386577]
[1726372323595,4.29430317,2426.8,2426.6,0.44386577]
[1726372323987,3.0,2426.8,2426.6,0.44386577]
[1726372324148,4.29430317,2426.8,2426.6,0.44386577]
[1726372324559,3.0,2426.8,2426.6,0.44386577]
[1726372324757,4.29430317,2426.8,2426.6,0.44386577]
[1726372325194,3.0,2426.8,2426.6,0.44386577]
[1726372325403,4.29430317,2426.8,2426.6,0.44386577]
[1726372325759,3.0,2426.8,2426.6,0.44386577]
[1726372325959,4.29430317,2426.8,2426.6,0.44386577]
[1726372326586,3.0,2426.8,2426.6,0.44386577]
[1726372326791,4.29430317,2426.8,2426.6,0.44386577]
[1726372327168,3.0,2426.8,2426.6,0.44386577]
[1726372327401,4.29430317,2426.8,2426.6,0.44386577]
[1726372327980,3.0,2426.8,2426.6,0.44386577]
[1726372328224,4.29430317,2426.8,2426.6,0.44386577]
[1726372336130,4.29430317,2426.9,2426.7,0.41440483]
[1726372336345,3.0,2426.9,2426.8,0.41440483]
[1726372336504,3.0,2426.9,2426.8,0.85812443]
[1726372336704,3.0,2426.9,2426.8,0.41440483]
[1726372337345,3.0,2426.9,2426.8,0.85812443]
[1726372337646,4.29430317,2427.0,2426.8,0.85812443]
[1726372337948,4.29430317,2427.0,2426.8,0.4437196]
[1726372338456,4.29430317,2427.0,2426.9,0.44368862]
[1726372338755,4.29430317,2427.0,2426.6,0.60365791]
[1726372338902,4.29430317,2427.0,2426.9,0.44368862]
[1726372339113,7.59055317,2427.0,2426.6,1.26668728]
[1726372339333,7.59055317,2427.0,2426.9,0.44368862]
[1726372339505,7.59055317,2427.0,2426.6,1.26668481]
[1726372339820,7.59055317,2427.0,2426.5,3.31563633]
[1726372340009,7.59055317,2427.0,2426.6,1.71047015]
[1726372340208,7.59055317,2427.0,2426.6,0.44378156]
[1726372350795,4.29430317,2427.0,2426.6,0.44378156]
[1726372360377,4.29430317,2427.0,2426.6,3.74053156]
[1726372360666,4.29430317,2427.1,2426.8,2.256]
[1726372360868,4.29430317,2427.1,2426.9,0.4436102]
[1726372362435,4.29430317,2427.1,2426.7,3.37895628]
[1726372362667,4.29430317,2427.1,2426.8,0.44364117]
[1726372362880,4.29430317,2427.1,2426.7,3.37895628]
[1726372363033,4.29430317,2427.1,2426.8,0.44364117]
[1726372363235,4.29430317,2427.1,2426.7,0.08240628]
[1726372363433,4.29430317,2427.1,2426.8,0.44364117]
[1726372363670,4.29430317,2427.1,2426.6,8.06481693]
[1726372363876,4.29430317,2427.1,2426.7,0.44367216]
[1726372365973,4.29430317,2427.1,2426.7,0.52607427]
[1726372366583,3.0,2427.1,2426.7,0.52607427]
[1726372370296,3.0,2427.1,2426.7,3.82272427]
[1726372371119,3.0,2427.1,2426.7,0.52607427]
[1726372371590,2.3703,2427.0,2426.7,0.52607427]
[1726372371784,2.3703,2427.0,2426.7,0.44367216]
[1726372381589,4.29430317,2427.1,2426.7,0.44367216]
[1726372381776,2.4778,2426.8,2426.7,0.44367216]
[1726372382188,2.4778,2426.8,2426.4,3.26534824]
[1726372382376,2.4778,2426.8,2426.7,0.44360242]
[1726372382596,2.4778,2426.8,2426.4,3.26534824]
[1726372382797,2.4778,2426.8,2426.7,0.44360242]
[1726372382994,2.4778,2426.8,2426.5,0.66306445]
[1726372382995,2.4778,2426.8,2426.5,0.66305569]
[1726372383297,2.4778,2426.8,2426.6,0.44363341]
[1726372383505,2.4778,2426.8,2426.4,6.56240824]
[1726372383708,2.4778,2426.8,2426.7,0.44360242]
[1726372383871,2.4778,2426.8,2426.4,6.56240824]
[1726372384076,2.4778,2426.8,2426.5,1.71021164]
[1726372384274,2.4778,2426.8,2426.5,0.44347423]
[1726372386818,2.4778,2426.7,2426.3,0.90566063]
[1726372387111,2.4778,2426.7,2426.4,1.2667612]
[1726372387326,2.4778,2426.7,2426.4,0.44355315]
[1726372396623,5.77447,2426.7,2426.4,0.44355315]
[1726372402250,4.59077317,2426.9,2426.5,3.8897306]
[1726372402447,3.29647,2426.9,2426.5,3.97214598]
[1726372402631,3.29647,2426.9,2426.6,0.44352604]
[1726372410063,3.0,2426.9,2426.6,0.44352604]
[1726372410425,6.55400317,2427.0,2426.6,0.44352604]
[1726372411040,9.85025317,2427.0,2426.6,0.44352604]
[1726372411246,8.55595,2427.0,2426.6,0.44352604]
[1726372411452,9.85025317,2427.0,2426.6,0.44352604]
[1726372419744,4.29430317,2426.9,2426.6,0.44352604]
[1726372420247,7.59069317,2426.9,2426.6,0.44352604]
[1726372426045,7.59069317,2426.9,2426.4,4.24567552]
[1726372426227,7.59069317,2426.9,2426.7,0.44339046]
[1726372426430,7.59069317,2426.9,2426.4,4.24567552]
[1726372426660,7.59069317,2426.9,2426.8,0.44335948]
[1726372426864,7.59069317,2426.9,2426.4,4.24567552]
[1726372427074,7.59069317,2426.9,2426.8,0.44335948]
[1726372427270,7.59069317,2426.9,2426.4,4.24567552]
[1726372427471,7.59069317,2426.9,2426.8,0.44335948]
[1726372427671,7.59069317,2426.9,2426.4,4.24567552]
[1726372427875,7.59069317,2426.9,2426.8,0.44335948]
[1726372428078,5.58175,2426.8,2426.3,3.21856063]
[1726372428233,6.87780799,2426.8,2426.4,0.59694586]
[1726372428430,6.87780799,2426.8,2426.3,3.21856063]
[1726372428675,6.87780799,2426.8,2426.4,0.59694708]
[1726372428835,6.87780799,2426.8,2426.3,3.21856063]
[1726372429037,6.87780799,2426.8,2426.4,0.59694768]
[1726372429265,6.87780799,2426.8,2426.3,3.21856063]
[1726372429430,6.87780799,2426.8,2426.4,0.59694832]
[1726372429651,6.87780799,2426.8,2426.3,3.21856063]
[1726372430093,6.87780799,2426.8,2426.4,0.59694795]
[1726372430299,6.87780799,2426.8,2426.3,3.21856063]
[1726372433094,6.87780799,2426.8,2426.3,2.3523243]
[1726372435968,10.17444799,2426.8,2426.3,2.3523243]
[1726372436166,6.87779799,2426.8,2426.3,3.21856063]
[1726372436373,6.87779799,2426.8,2426.3,2.3523243]
[1726372436999,3.29668,2426.7,2426.4,0.44352266]
[1726372441170,3.29692,2426.5,2426.4,0.44352266]
[1726372441473,6.29692,2426.5,2426.4,0.44352266]
[1726372453506,3.0,2426.7,2426.4,2.75892266]
[1726372454044,6.29675,2426.7,2426.4,2.75892266]
[1726372454807,3.0,2426.7,2426.4,2.75892266]
[1726372456050,6.2967,2426.7,2426.4,2.75892266]
[1726372463530,6.2967,2426.7,2426.4,0.44352266]
[1726372463736,8.6854,2426.7,2426.4,0.44352266]
[1726372465022,9.98145799,2426.7,2426.4,0.44352266]
[1726372469872,3.29683,2426.6,2426.4,0.44352266]
[1726372470177,5.3887,2426.5,2426.4,0.44352266]
[1726372470362,8.68562,2426.5,2426.4,0.44352266]
[1726372474779,9.98167799,2426.5,2426.4,0.44352266]
[1726372487535,13.82859799,2426.5,2426.4,0.44352266]
[1726372487691,16.44446784,2426.5,2426.4,0.44352266]
[1726372487897,6.59412,2426.4,2426.3,0.0394243]
[1726372488117,10.88906568,2426.4,2426.3,0.0394243]
[1726372495920,9.59412,2426.4,2426.3,0.0394243]
[1726372496121,11.39570403,2426.4,2426.3,0.0394243]
[1726372496323,13.74300403,2426.4,2426.3,0.0394243]
[1726372500840,6.29706,2426.4,2426.3,0.0394243]
[1726372501043,6.29706,2426.4,2426.3,0.48350098]
[1726372501236,6.29706,2426.4,2426.3,0.0394243]
[1726372502134,3.0,2426.5,2426.3,0.0394243]
[1726372502434,3.0,2426.5,2426.4,0.44404568]
[1726372502435,6.297,2426.5,2426.4,0.44404568]
[1726372502646,6.29668,2426.7,2426.4,0.44404568]
[1726372502848,3.0,2426.7,2426.4,0.44404568]
[1726372503141,3.0,2426.7,2426.5,2.3857]
[1726372503643,3.0,2426.7,2426.6,0.44398371]
[1726372520426,3.0,2426.7,2426.3,2.4930243]
[1726372520843,3.0,2426.7,2426.4,0.44368824]
[1726372524408,6.29669,2426.7,2426.4,0.44368824]
[1726372532455,3.29692,2426.5,2426.4,0.44368824]
[1726372532756,5.66362,2426.5,2426.4,0.44368824]
[1726372548997,3.29692,2426.5,2426.4,0.44368824]
[1726372551991,3.28638493,2426.5,2426.4,0.44368824]
[1726372562134,3.29679,2426.6,2426.4,0.44368824]
[1726372575254,6.59368,2426.6,2426.4,0.44368824]
[1726372575418,3.29692,2426.5,2426.4,0.44368824]
[1726372576138,5.68182,2426.5,2426.4,0.44368824]
[1726372576341,8.68182,2426.5,2426.4,0.44368824]
[1726372576556,9.97638955,2426.5,2426.4,0.44368824]
[1726372582985,14.98920986,2426.5,2426.4,0.44368824]
[1726372583286,14.98920986,2426.5,2426.3,0.0394243]
[1726372583287,3.29706,2426.4,2426.3,0.0394243]
[1726372583588,7.88988466,2426.4,2426.3,0.48327429]
[1726372583919,10.22728466,2426.4,2426.3,0.48327429]
[1726372584266,15.11018551,2426.4,2426.3,0.48327429]
[1726372584585,15.54051359,2426.4,2426.3,0.48327429]
[1726372584791,15.97415168,2426.4,2426.3,0.0394243]
[1726372585154,15.54134345,2426.4,2426.3,0.0394243]
[1726372585986,13.81442085,2426.4,2426.3,0.0394243]
[1726372586193,15.54084973,2426.4,2426.3,0.0394243]
[1726372589282,13.81442085,2426.4,2426.3,0.0394243]
[1726372589504,15.54084973,2426.4,2426.3,0.0394243]
[1726372590315,13.81442085,2426.4,2426.3,0.0394243]
[1726372590888,15.54084973,2426.4,2426.3,0.0394243]
[1726372591474,13.81442085,2426.4,2426.3,0.0394243]
[1726372591676,15.54084973,2426.4,2426.3,0.0394243]
[1726372592013,13.81442085,2426.4,2426.3,0.0394243]
[1726372592209,15.10841989,2426.4,2426.3,0.0394243]
[1726372592384,13.81442085,2426.4,2426.3,0.0394243]
[1726372593305,15.10830465,2426.4,2426.3,0.0394243]
[1726372595331,15.54084973,2426.4,2426.3,0.0394243]
[1726372595701,13.81442085,2426.4,2426.3,0.0394243]
[1726372597245,15.10826532,2426.4,2426.3,0.0394243]
[1726372598637,15.10824428,2426.4,2426.3,0.0394243]
[1726372599145,11.47702085,2426.4,2426.3,0.0394243]
[1726372599437,11.32054888,2426.4,2426.3,0.0394243]
[1726372599740,9.59412,2426.4,2426.3,0.0394243]
[1726372599947,10.88788883,2426.4,2426.3,0.0394243]
[1726372600608,7.59082883,2426.4,2426.3,0.0394243]
[1726372600814,7.59083267,2426.4,2426.3,0.47669168]
[1726372601657,6.29706,2426.4,2426.3,0.47669168]
[1726372601939,6.29706,2426.4,2426.3,0.0394243]
[1726372603206,6.29706,2426.4,2426.3,0.47669168]
[1726372603408,6.29706,2426.4,2426.3,0.0394243]
[1726372604246,6.29706,2426.4,2426.3,0.47669168]
[1726372604548,6.29706,2426.4,2426.3,0.0394243]
[1726372604706,6.29706,2426.4,2426.3,0.47669168]
[1726372605412,6.29706,2426.4,2426.3,0.0394243]
[1726372605834,6.29706,2426.4,2426.3,0.47669168]
[1726372606142,6.29706,2426.4,2426.3,0.0394243]
[1726372606353,6.29706,2426.4,2426.3,0.47669168]
[1726372608007,7.59083267,2426.4,2426.3,0.47669168]
[1726372608843,3.0,2426.4,2426.3,2.88229168]
[1726372609443,3.0,2426.4,2426.3,0.47669168]
[1726372613653,1.29377267,2426.6,2426.3,2.88229168]
[1726372613811,3.0,2426.5,2426.3,2.88229168]
[1726372624271,6.29693,2426.5,2426.3,0.47669168]
[1726372624435,8.70633,2426.5,2426.3,0.47669168]
[1726372626566,10.00010267,2426.5,2426.3,0.47669168]
[1726372632605,8.70633,2426.5,2426.3,0.47669168]
[1726372633281,10.00010267,2426.5,2426.3,0.47669168]
[1726372633508,8.70633,2426.5,2426.3,0.47669168]
[1726372634023,10.00010267,2426.5,2426.3,0.47669168]
[1726372634181,8.70633,2426.5,2426.3,0.47669168]
[1726372634786,10.00010267,2426.5,2426.3,0.47669168]
[1726372634987,12.00334,2426.5,2426.3,0.47669168]
[1726372635180,10.00010267,2426.5,2426.3,0.47669168]
[1726372635722,8.70633,2426.5,2426.3,0.47669168]
[1726372636420,10.00010267,2426.5,2426.3,0.47669168]
[1726372636863,3.29706,2426.4,2426.3,0.47669168]
[1726372637153,10.00010267,2426.5,2426.3,0.47669168]
[1726372638056,3.29706,2426.4,2426.3,0.47669168]
[1726372638260,4.59083267,2426.4,2426.3,0.47669168]
[1726372640268,4.59083267,2426.4,2426.3,0.0394243]
[1726372640827,4.59083267,2426.4,2426.3,0.47659141]
[1726372644266,3.29706,2426.4,2426.3,0.47659141]
[1726372644466,4.59205616,2426.4,2426.3,0.47659141]
[1726372644867,3.29706,2426.4,2426.3,0.47659141]
[1726372645679,4.59216065,2426.4,2426.3,2.82499141]
[1726372652536,4.59216065,2426.4,2426.3,0.47659141]
[1726372653796,7.05667525,2426.4,2426.3,0.42659141]
[1726372653996,11.78310413,2426.4,2426.3,0.42659141]
[1726372654327,3.29725,2426.3,2425.9,2.3484]
[1726372654506,1.29528423,2426.2,2425.9,2.3484]
[1726372656132,4.59253423,2426.3,2425.9,2.3484]
[1726372656650,1.29528423,2426.2,2425.9,2.3484]
[1726372657343,4.59253423,2426.3,2425.9,2.3484]
[1726372661217,4.59253423,2426.3,2426.0,0.43693811]
[1726372662233,4.59253423,2426.3,2426.1,2.4175]
[1726372662614,7.59253423,2426.3,2426.2,0.43687612]
[1726372662925,6.29725,2426.3,2426.2,0.43687612]
[1726372666529,7.59253423,2426.3,2426.2,0.43687612]
[1726372667528,7.59253423,2426.3,2425.9,3.8269306]
[1726372667739,7.59253423,2426.3,2426.2,0.43689792]
[1726372668062,9.3114271,2426.3,2425.9,3.8269306]
[1726372668217,9.3114271,2426.3,2425.9,2.4175]
[1726372668218,7.59253423,2426.3,2425.9,2.4175]
[1726372668615,7.59253423,2426.3,2426.0,0.43695991]
[1726372671974,3.29736,2426.2,2426.0,0.43695991]
[1726372672660,3.29736,2426.2,2426.1,0.43692891]
[1726372672866,3.29736,2426.2,2425.8,0.5970789]
[1726372673061,3.29736,2426.2,2425.7,7.99043324]
[1726372673271,3.29736,2426.2,2425.8,0.43702192]
[1726372673441,3.29736,2426.2,2425.8,0.59707323]
[1726372673758,10.88983423,2426.3,2425.9,0.43699092]
[1726372673964,7.59253423,2426.3,2425.9,0.43699092]
[1726372674258,7.59253423,2426.3,2426.0,0.43695991]
[1726372678074,1.29528423,2426.2,2426.0,0.43695991]
[1726372679565,1.29528423,2426.2,2426.0,0.38695991]
[1726372684379,2.3562,2426.1,2426.0,0.38695991]
[1726372684541,3.85345031,2426.1,2426.0,0.38695991]
[1726372684751,5.14873454,2426.1,2425.7,2.3161]
[1726372684951,3.65148423,2426.1,2426.0,0.43529761]
[1726372685434,3.65148423,2426.1,2425.7,2.3161]
[1726372685638,3.65148423,2426.1,2425.8,0.43535962]
[1726372685837,3.65148423,2426.1,2425.7,2.3161]
[1726372686070,3.65148423,2426.1,2425.8,0.43535962]
[1726372686377,3.65148423,2426.1,2425.7,2.3161]
[1726372686553,3.65148423,2426.1,2425.9,0.43532862]
[1726372686870,3.65148423,2426.1,2426.0,0.43529761]
[1726372687078,3.65148423,2426.1,2425.7,2.3161]
[1726372687237,3.65148423,2426.1,2425.8,0.43535962]
[1726372687437,3.65148423,2426.1,2425.7,2.3161]
[1726372687658,3.65148423,2426.1,2425.8,0.43535962]
[1726372687871,3.65148423,2426.1,2425.7,2.3161]
[1726372688071,3.65148423,2426.1,2425.8,0.43535962]
[1726372688274,3.65148423,2426.1,2425.7,3.7255306]
[1726372688476,4.59262423,2426.2,2425.7,3.7255306]
[1726372688648,4.59262423,2426.2,2425.8,0.43535962]
[1726372688982,4.59262423,2426.2,2425.7,3.7255306]
[1726372689219,4.59262423,2426.2,2425.9,0.43532862]
[1726372689382,6.30580993,2426.2,2425.8,0.43535962]
[1726372689707,6.30580993,2426.2,2425.9,0.43532862]
[1726372689856,4.59262423,2426.2,2425.9,0.43532862]
[1726372690182,4.59262423,2426.2,2425.7,3.7255306]
[1726372690378,4.59262423,2426.2,2426.0,0.43529761]
[1726372690588,4.59262423,2426.2,2425.7,3.7255306]
[1726372690794,7.59262423,2426.2,2426.1,0.43526661]
[1726372690943,9.60580993,2426.2,2425.7,3.7255306]
[1726372691144,3.29748,2426.1,2425.7,3.7255306]
[1726372692080,3.29748,2426.1,2425.8,0.43539885]
[1726372692277,3.29748,2426.1,2425.7,3.7255306]
[1726372692441,3.29748,2426.1,2425.8,0.43539885]
[1726372692807,3.29748,2426.1,2425.7,3.7255306]
[1726372692986,7.59264423,2426.2,2425.9,0.43536785]
[1726372693165,9.30582134,2426.2,2425.8,0.43539885]
[1726372693365,9.30582134,2426.2,2426.0,0.43533685]
[1726372693564,9.30582134,2426.2,2425.9,0.43536785]
[1726372693817,7.59264423,2426.2,2426.1,0.43530585]
[1726372694257,4.29528423,2426.2,2425.7,7.0235206]
[1726372694466,1.29528423,2426.1,2425.8,0.43539885]
[1726372694669,4.29528423,2426.2,2425.7,7.0235206]
[1726372694981,4.29528423,2426.2,2425.8,0.43539885]
[1726372695384,4.29528423,2426.2,2425.7,7.0235206]
[1726372695778,4.29528423,2426.2,2425.8,0.43539885]
[1726372696311,4.29528423,2426.2,2425.9,0.43536785]
[1726372696670,4.29528423,2426.2,2425.7,7.0235206]
[1726372697009,4.29528423,2426.2,2425.7,6.9735206]
[1726372697204,4.29528423,2426.2,2425.8,0.43539885]
[1726372697602,4.29528423,2426.2,2425.7,6.9735206]
[1726372697804,4.29528423,2426.2,2425.9,0.43536785]
[1726372698104,4.29528423,2426.2,2425.7,6.9735206]
[1726372698105,4.29528423,2426.2,2426.0,0.43533685]
[1726372698276,6.00846601,2426.2,2426.0,0.43533685]
[1726372698465,6.00846601,2426.2,2425.7,6.9735206]
[1726372698667,4.29528423,2426.2,2425.8,0.43539885]
[1726372698868,4.29528423,2426.2,2425.7,6.9735206]
[1726372699088,4.29528423,2426.2,2425.8,0.43539885]
[1726372699290,4.29528423,2426.2,2425.7,6.9735206]
[1726372699496,4.29528423,2426.2,2425.8,0.43539885]
[1726372699962,4.29528423,2426.2,2425.7,6.9735206]
[1726372700172,4.29528423,2426.2,2425.9,0.43536785]
[1726372700396,4.29528423,2426.2,2425.8,0.43539885]
[1726372700701,4.29528423,2426.2,2425.9,0.43536785]
[1726372701001,4.29528423,2426.2,2425.7,6.9735206]
[1726372701202,1.29528423,2426.1,2425.7,6.9735206]
[1726372701504,4.29528423,2426.2,2425.8,0.43539885]
[1726372701707,4.29528423,2426.2,2425.7,6.9735206]
[1726372701890,4.29528423,2426.2,2425.9,0.43536348]
[1726372702205,4.29528423,2426.2,2425.7,6.9735206]
[1726372702407,4.29528423,2426.2,2426.0,0.43533248]
[1726372702702,6.00848128,2426.2,2425.7,6.9735206]
[1726372702899,4.29528423,2426.2,2425.8,0.43539449]
[1726372703109,4.29528423,2426.2,2425.7,6.9735206]
[1726372703412,4.29528423,2426.2,2425.9,0.43536348]
[1726372703569,4.29528423,2426.2,2425.8,0.43539449]
[1726372703773,4.29528423,2426.2,2426.0,0.43533248]
[1726372704270,1.29528423,2426.1,2425.7,6.9735206]
[1726372704483,4.29528423,2426.2,2425.7,6.9735206]
[1726372707112,4.29528423,2426.2,2425.8,0.43539449]
[1726372707269,6.0084754,2426.2,2425.8,0.43539449]
[1726372707467,9.3058154,2426.2,2425.7,6.9735206]
[1726372707667,7.59262423,2426.2,2425.8,0.43539449]
[1726372707988,7.59262423,2426.2,2425.7,6.9735206]
[1726372708192,7.59262423,2426.2,2425.9,0.43536348]
[1726372708429,7.59262423,2426.2,2425.8,0.43539449]
[1726372708634,1.29528423,2426.1,2426.0,0.43533248]
[1726372708820,1.29528423,2426.1,2425.9,0.43536348]
[1726372709006,1.29528423,2426.1,2426.0,0.43533248]
[1726372709195,7.59262423,2426.2,2426.0,0.43533248]
[1726372709396,1.29528423,2426.1,2425.7,6.9735206]
[1726372709889,1.29528423,2426.1,2425.8,0.43539449]
[1726372710096,1.29528423,2426.1,2425.7,6.9735206]
[1726372710436,1.29528423,2426.1,2425.8,0.43539449]
[1726372710730,1.29528423,2426.1,2425.7,3.6755306]
[1726372711033,1.29528423,2426.1,2425.9,0.43536348]
[1726372711232,3.62508423,2426.1,2425.8,0.43539449]
[1726372711531,3.62508423,2426.1,2425.9,0.43536348]
[1726372711932,3.62508423,2426.1,2425.7,3.6755306]
[1726372712136,3.62508423,2426.1,2426.0,0.43533248]
[1726372712436,3.62508423,2426.1,2425.7,4.54112324]
[1726372712594,3.62508423,2426.1,2426.0,0.43533248]
[1726372712935,5.11969454,2426.1,2426.0,0.43533248]
[1726372713228,5.11969454,2426.1,2425.7,2.2661]
[1726372713435,3.62508423,2426.1,2426.0,0.43533248]
[1726372713726,3.62508423,2426.1,2426.0,0.43534118]
[1726372713928,7.35369888,2426.1,2425.7,2.2661]
[1726372714270,1.2958408,2426.0,2425.7,2.2661]
[1726372714400,1.2958408,2426.0,2425.6,0.0394243]
[1726372715028,4.5934908,2426.0,2425.6,0.0394243]
[1726372720227,4.5934908,2426.0,2425.5,2.27502324]
[1726372720228,4.5934908,2426.0,2425.5,2.21444754]
[1726372720421,4.5934908,2426.0,2425.6,0.59713015]
[1726372720650,4.5934908,2426.0,2425.5,2.21444754]
[1726372720794,4.5934908,2426.0,2425.6,0.59713197]
[1726372720995,4.5934908,2426.0,2425.5,2.21444754]
[1726372721211,4.5934908,2426.0,2425.6,0.59713017]
[1726372721410,4.5934908,2426.0,2425.5,2.21444754]
[1726372721714,4.5934908,2426.0,2425.6,0.59713009]
[1726372721916,4.5934908,2426.0,2425.5,2.21444754]
[1726372722138,4.5934908,2426.0,2425.6,1.03259263]
[1726372722438,4.5934908,2426.0,2425.6,0.4354652]
[1726372723348,6.9231108,2426.1,2425.7,3.7928306]
[1726372723703,6.9231108,2426.1,2425.8,0.43544679]
[1726372724001,10.2207008,2426.1,2425.7,3.7928306]
[1726372724202,10.2207008,2426.1,2425.9,0.43541578]
[1726372724434,11.93134807,2426.1,2425.8,0.43544679]
[1726372724736,10.2207008,2426.1,2425.9,0.43541578]
[1726372724946,6.9231108,2426.1,2425.9,0.43541578]
[1726372725106,6.9231108,2426.1,2425.7,3.7928306]
[1726372725308,6.9231108,2426.1,2425.8,0.43544679]
[1726372725636,1.2958408,2426.0,2425.5,7.95663324]
[1726372725949,1.2958408,2426.0,2425.6,0.59712893]
[1726372726136,1.2958408,2426.0,2425.6,0.43559164]
[1726372730312,6.9231108,2426.1,2425.6,0.43559164]
[1726372731468,1.2958408,2426.0,2425.6,0.43559164]
[1726372731680,6.9231108,2426.1,2425.6,0.43559164]
[1726372738159,6.9231108,2426.1,2425.6,3.73370164]
[1726372739355,6.9231108,2426.1,2425.6,4.59929428]
[1726372741172,6.9231108,2426.1,2425.6,1.30118428]
[1726372744756,6.9231108,2426.1,2425.7,2.87860647]
[1726372744971,6.9231108,2426.1,2425.7,2.2815]
[1726372745178,6.9231108,2426.1,2425.8,0.43552529]
[1726372745536,6.9231108,2426.1,2425.7,2.2815]
[1726372745737,6.9231108,2426.1,2425.8,0.43552529]
[1726372745942,6.9231108,2426.1,2425.7,2.2815]
[1726372746143,6.9231108,2426.1,2425.8,0.43552529]
[1726372746361,6.9231108,2426.1,2425.7,2.2815]
[1726372746558,6.9231108,2426.1,2425.9,0.43549429]
[1726372746764,8.63374161,2426.1,2425.8,0.43552529]
[1726372747085,11.63374161,2426.1,2426.0,0.43546329]
[1726372747288,11.63374161,2426.1,2425.9,0.43549429]
[1726372747289,9.9231108,2426.1,2425.9,0.43549429]
[1726372747453,9.9231108,2426.1,2426.0,0.43546329]
[1726372747875,9.9231108,2426.1,2425.7,2.2815]
[1726372748076,9.9231108,2426.1,2426.0,0.43546329]
[1726372748271,11.63375286,2426.1,2425.7,2.2815]
[1726372748588,9.9231108,2426.1,2425.7,2.2815]
[1726372748789,9.9231108,2426.1,2425.8,0.43552529]
[1726372749312,9.9231108,2426.1,2425.7,2.2815]
[1726372749483,9.9231108,2426.1,2425.9,0.43549429]
[1726372749660,11.63375286,2426.1,2425.8,0.43552529]
[1726372749845,9.9231108,2426.1,2426.0,0.43546329]
[1726372750361,9.9231108,2426.1,2425.7,2.2815]
[1726372750587,9.9231108,2426.1,2426.0,0.43546329]
[1726372750792,11.63375286,2426.1,2425.7,2.2815]
[1726372750961,9.9231108,2426.1,2426.0,0.43545019]
[1726372751158,9.9231108,2426.1,2425.7,2.2815]
[1726372751358,9.9231108,2426.1,2426.0,0.43545019]
[1726372751683,9.9231108,2426.1,2425.5,4.59656897]
[1726372751684,3.29762,2426.0,2425.5,4.16377264]
[1726372751980,3.29762,2426.0,2425.5,3.29818]
[1726372751981,4.59337014,2426.0,2425.5,3.29818]
[1726372752185,4.59337014,2426.0,2425.6,0.43555677]
[1726372752487,3.55645014,2425.9,2425.6,0.43555677]
[1726372752689,5.55846,2425.9,2425.6,0.43555677]
[1726372752845,6.85421014,2425.9,2425.4,3.7323306]
[1726372753060,8.53020846,2425.9,2425.7,0.43552576]
[1726372753260,8.53020846,2425.9,2425.4,3.7323306]
[1726372753602,8.53020846,2425.9,2425.5,0.43558778]
[1726372753802,1.35542573,2425.8,2425.5,0.43558778]
[1726372756290,8.53020846,2425.9,2425.5,0.43558778]
[1726372759800,1.29575014,2425.8,2425.5,0.43558778]
[1726372760162,8.53020846,2425.9,2425.5,0.43558778]
[1726372761709,1.29575014,2425.8,2425.5,0.43558778]
[1726372761903,8.53020846,2425.9,2425.5,0.43558778]
[1726372762106,1.35542573,2425.8,2425.5,0.43558778]
[1726372763407,8.53020846,2425.9,2425.5,0.43558778]
[1726372765077,6.85421014,2425.9,2425.6,1.4094306]
[1726372765466,6.85421014,2425.9,2425.7,0.43580487]
[1726372767870,3.55645014,2425.9,2425.7,0.43580487]
[1726372770689,2.2607,2425.9,2425.7,0.43580487]
[1726372778423,2.2607,2425.9,2425.8,0.43577819]
[1726372778627,2.2607,2425.9,2425.4,7.0307306]
[1726372778797,2.2607,2425.9,2425.8,0.43577819]
[1726372779141,3.41832647,2425.9,2425.4,7.0307306]
[1726372779310,2.2607,2425.9,2425.8,0.43577819]
[1726372779842,2.2607,2425.9,2425.4,7.0307306]
[1726372780045,2.2607,2425.9,2425.8,0.43577819]